[Event "1000GM Spring GM-B 2024"]
[Site "New York"]
[Date "2024.03.31"]
[Round "7.2"]
[White "Furfine, Jacob"]
[Black "Girish, A. Koushik"]
[Result "0-1"]
[ECO "D85"]
[WhiteElo "2343"]
[BlackElo "2499"]
[Annotator "RC"]
[PlyCount "96"]
[EventDate "2024.03.26"]
[EventType "tourn"]
[EventCountry "USA"]
[SourceTitle "playchess.com"]
[Source "ChessBase"]
[SourceQuality "1"]
[TimeControl "5400+30"]

1. d4 {[%emt 0:00:03]} Nf6 {[%emt 0:00:34]} 2. Nf3 {[%emt 0:00:52]} g6 {[%emt 0:01:10]} 3. c4 {[%emt 0:00:19]} Bg7 {[%emt 0:00:07]} 4. Nc3 {[%emt 0:00:04]} d5 {[%emt 0:00:43]} 5. cxd5 {[%emt 0:05:13]} Nxd5 {[%emt 0:00:27]} 6. e4 {[%emt 0:08:48]} Nxc3 {[%emt 0:00:13]} 7. bxc3 {[%emt 0:00:01]} c5 {[%emt 0:00:07]} 8. Rb1 {[%emt 0:00:54]} O-O {[%emt 0:00:24]} 9. Be2 {[%emt 0:00:12]} b6 {[%emt 0:02:12]} 10. h4 {[%emt 0:03:03]} Bg4 {[%emt 0:15:14]} 11. Ng1 {[%emt 0:03:18]} Bxe2 {[%emt 0:07:44]} 12. Nxe2 {[%emt 0:00:10]} Qc8 {[%emt 0:06:09]} 13. f3 {[%emt 0:07:33]} cxd4 {[%emt 0:10:14]} 14. cxd4 {[%emt 0:00:06]} Nc6 {[%emt 0:00:34]} 15. Be3 {[%emt 0:07:56]} Qa6 {[%emt 0:01:35]} 16. O-O {[%emt 0:02:15]} Qxa2 {[%emt 0:12:55]} 17. d5 {[%emt 0:09:37]} Ne5 {[%emt 0:02:18]} 18. Rf2 {[%emt 0:07:26]} Nc4 {[%emt 0:13:24]} 19. Bd4 {[%emt 0:00:46]} Qd2 {[%emt 0:00:21]} 20. Bxg7 {[%emt 0:00:34]} Qxd1+ {[%emt 0:00:18]} 21. Rxd1 {[%emt 0:00:03]} Kxg7 {[%emt 0:00:06]} 22. Nd4 {[%emt 0:00:11]} Rfc8 {[%emt 0:00:17]} 23. Rc1 {[%emt 0:02:49]} Ne5 {[%emt 0:08:56]} 24. Rfc2 {[%emt 0:00:08]} Rxc2 {[%emt 0:00:03]} 25. Rxc2 {[%emt 0:00:03]} a5 {[%emt 0:00:07]} 26. Rc7 {[%emt 0:11:47]} Kf8 {[%emt 0:07:08]} 27. Kf2 {[%emt 0:18:37]} a4 {[%emt 0:00:38]} 28. Ke3 {[%emt 0:02:06]} a3 {[%emt 0:01:22]} 29. Nc2 {[%emt 0:00:57]} a2 {[%emt 0:01:20]} 30. Kd4 {[%emt 0:00:22]} f6 {[%emt 0:01:04]} 31. Na1 {[%emt 0:01:25]} Ra3 {[%emt 0:02:05]} 32. Rc3 {[%emt 0:00:02]} Rxc3 {[%emt 0:04:44]} 33. Kxc3 {[%emt 0:00:01]} h5 {[%emt 0:00:06]} 34. Kb2 {[%emt 0:00:28]} Nd3+ {[%emt 0:01:18]} 35. Kxa2 {[%emt 0:00:02]} Ne1 {[%emt 0:00:06]} 36. g3 {[%emt 0:00:11]} Nxf3 {[%emt 0:00:05]} 37. Nb3 {[%emt 0:00:36]} g5 {[%emt 0:01:38]} 38. Kb2 {[%emt 0:00:04]} gxh4 {[%emt 0:00:10]} 39. gxh4 {[%emt 0:00:00]} Nxh4 {[%emt 0:00:03]} 40. Kc3 {[%emt 0:00:14]} Nf3 {[%emt 0:00:43]} 41. Kd3 {[%emt 0:00:07]} b5 {[%emt 0:00:49]} 42. Ke3 {[%emt 0:00:10]} Ne5 {[%emt 0:00:04]} 43. Nd4 {[%emt 0:02:06]} b4 {[%emt 0:00:06]} 44. Nf5 {[%emt 0:00:02]} Nc4+ {[%emt 0:00:30]} 45. Kd3 {[%emt 0:01:00]} Nd6 {[%emt 0:00:28]} 46. Nd4 {[%emt 0:00:43]} h4 {[%emt 0:00:18]} 47. Ke3 {[%emt 0:00:21]} h3 {[%emt 0:00:12]} 48. Kf3 {[%emt 0:00:13]} Nxe4 {[%emt 0:00:11]} 0-1

[Event "1000GM Spring GM-B 2024"]
[Site "New York"]
[Date "2024.03.30"]
[Round "7.3"]
[White "Paragua, Mark"]
[Black "Nagy, Gabor"]
[Result "1/2-1/2"]
[ECO "E11"]
[WhiteElo "2451"]
[BlackElo "2436"]
[Annotator "TA"]
[PlyCount "25"]
[EventDate "2024.03.26"]
[EventType "tourn"]
[EventCountry "USA"]
[SourceTitle "playchess.com"]
[Source "ChessBase"]
[SourceQuality "1"]
[TimeControl "5400+30"]

{[%evp 20,25,21,0,0,0,18,0]} 1. d4 {[%emt 0:00:22]} d5 {[%emt 0:00:07]} 2. c4 {[%emt 0:00:07]} e6 {[%emt 0:00:05]} 3. Nf3 {[%emt 0:00:04]} Nf6 {[%emt 0:00:06]} 4. g3 {[%emt 0:00:06]} Bb4+ {[%emt 0:00:06]} 5. Bd2 {[%emt 0:00:06]} Be7 {[%emt 0:00:05]} 6. Bg2 {[%emt 0:00:06]} O-O {[%emt 0:00:06]} 7. O-O {[%emt 0:00:05]} Nbd7 {[%emt 0:00:04]} 8. Qc2 {[%emt 0:00:12]} c6 {[%emt 0:00:07]} 9. Bf4 {[%emt 0:00:12]} Nh5 {[%emt 0:00:09]} 10. Bc1 {[%emt 0:00:13]} Nhf6 {[%emt 0:00:06]} 11. Bf4 {[%emt 0:00:06] The position is equal.} Nh5 {[%emt 0:00:05]} 12. Bc1 {[%emt 0:00:04]} Nhf6 {[%emt 0:00:04]} 13. Bf4 {[%emt 0:00:04] An uneventful encounter.   Weighted Error Value: White=0.09 (flawless) /Black=0.00 (flawless) .  OK:         	---       	Black=1} 1/2-1/2

[Event "1000GM Spring GM-B 2024"]
[Site "New York"]
[Date "2024.03.31"]
[Round "7.4"]
[White "Luo, Terry"]
[Black "Griffith, Kyron"]
[Result "1/2-1/2"]
[ECO "E11"]
[WhiteElo "2333"]
[BlackElo "2352"]
[Annotator "RC"]
[PlyCount "96"]
[EventDate "2024.03.26"]
[EventType "tourn"]
[EventCountry "USA"]
[SourceTitle "playchess.com"]
[Source "ChessBase"]
[SourceQuality "1"]
[TimeControl "5400+30"]

1. d4 {[%emt 0:00:01]} Nf6 {[%emt 0:02:24]} 2. c4 {[%emt 0:00:04]} e6 {[%emt 0:00:04]} 3. Nf3 {[%emt 0:00:02]} d5 {[%emt 0:00:05]} 4. g3 {[%emt 0:00:02]} Bb4+ {[%emt 0:00:07]} 5. Bd2 {[%emt 0:00:03]} Be7 {[%emt 0:00:06]} 6. Bg2 {[%emt 0:00:03]} c6 {[%emt 0:00:08]} 7. Qc2 {[%emt 0:00:05]} Nbd7 {[%emt 0:00:48]} 8. O-O {[%emt 0:00:09]} O-O {[%emt 0:00:39]} 9. Rd1 {[%emt 0:00:03]} b6 {[%emt 0:00:26]} 10. b3 {[%emt 0:00:04]} Bb7 {[%emt 0:01:24]} 11. Nc3 {[%emt 0:00:06]} Rc8 {[%emt 0:02:55]} 12. e4 {[%emt 0:00:09]} h6 {[%emt 0:14:04]} 13. Bf4 {[%emt 0:08:10]} c5 {[%emt 0:08:56]} 14. exd5 {[%emt 0:10:26]} exd5 {[%emt 0:01:14]} 15. Qb2 {[%emt 0:02:28]} dxc4 {[%emt 0:07:10]} 16. d5 {[%emt 0:00:59]} g5 {[%emt 0:14:16]} 17. Bc1 {[%emt 0:14:02]} Bd6 {[%emt 0:02:40]} 18. bxc4 {[%emt 0:02:23]} Re8 {[%emt 0:01:53]} 19. h4 {[%emt 0:04:19]} g4 {[%emt 0:01:40]} 20. Nh2 {[%emt 0:00:23]} h5 {[%emt 0:01:50]} 21. Bg5 {[%emt 0:03:25]} Be5 {[%emt 0:01:17]} 22. Re1 {[%emt 0:05:22]} b5 {[%emt 0:02:41]} 23. cxb5 {[%emt 0:21:22]} Bd4 {[%emt 0:05:49]} 24. Qc2 {[%emt 0:03:09]} Qa5 {[%emt 0:04:38]} 25. Bd2 {[%emt 0:00:05]} Qa3 {[%emt 0:00:13]} 26. Rad1 {[%emt 0:04:28]} Ne5 {[%emt 0:03:21]} 27. Ne2 {[%emt 0:02:31]} Nd3 {[%emt 0:01:02]} 28. Nxd4 {[%emt 0:00:45]} Nxe1 {[%emt 0:00:21]} 29. Qf5 {[%emt 0:01:02]} Nh7 {[%emt 0:06:17]} 30. Be4 {[%emt 0:00:58]} Rxe4 {[%emt 0:00:10]} 31. Qxe4 {[%emt 0:00:01]} cxd4 {[%emt 0:00:25]} 32. Rxe1 {[%emt 0:00:35]} Qxa2 {[%emt 0:00:31]} 33. Qxd4 {[%emt 0:01:01]} Qxd5 {[%emt 0:01:41]} 34. Qxd5 {[%emt 0:00:05]} Bxd5 {[%emt 0:00:03]} 35. Be3 {[%emt 0:00:36]} Rb8 {[%emt 0:02:45]} 36. Rb1 {[%emt 0:02:08]} Bc4 {[%emt 0:01:17]} 37. Bxa7 {[%emt 0:00:12]} Rxb5 {[%emt 0:00:14]} 38. Rxb5 {[%emt 0:00:03]} Bxb5 {[%emt 0:00:14]} 39. f3 {[%emt 0:00:25]} f5 {[%emt 0:00:33]} 40. Kf2 {[%emt 0:00:51]} Kf7 {[%emt 0:00:14]} 41. Ke3 {[%emt 0:01:40]} Kg6 {[%emt 0:00:56]} 42. fxg4 {[%emt 0:01:46]} hxg4 {[%emt 0:00:28]} 43. Kf4 {[%emt 0:01:35]} Nf6 {[%emt 0:00:21]} 44. Bf2 {[%emt 0:00:09]} Nh5+ {[%emt 0:00:57]} 45. Ke5 {[%emt 0:00:29]} Be2 {[%emt 0:00:29]} 46. Be1 {[%emt 0:00:37]} Nf6 {[%emt 0:00:44]} 47. Kd4 {[%emt 0:01:15]} Ba6 {[%emt 0:00:44]} 48. Ke5 {[%emt 0:00:19]} Be2 {[%emt 0:00:00]} 1/2-1/2

[Event "1000GM Spring GM-B 2024"]
[Site "New York"]
[Date "2024.03.31"]
[Round "7.5"]
[White "Sinha, Sahil"]
[Black "Kaliksteyn, Alexander"]
[Result "1/2-1/2"]
[ECO "D45"]
[WhiteElo "2299"]
[BlackElo "2356"]
[Annotator "RC"]
[PlyCount "30"]
[EventDate "2024.03.26"]
[EventType "tourn"]
[EventCountry "USA"]
[SourceTitle "playchess.com"]
[Source "ChessBase"]
[SourceQuality "1"]
[TimeControl "5400+30"]

1. d4 {[%emt 0:00:18]} d5 {[%emt 0:00:05]} 2. c4 {[%emt 0:00:04]} e6 {[%emt 0:00:07]} 3. Nc3 {[%emt 0:00:12]} c6 {[%emt 0:00:05]} 4. e3 {[%emt 0:00:21]} Nf6 {[%emt 0:00:09]} 5. Nf3 {[%emt 0:00:14]} Nbd7 {[%emt 0:00:05]} 6. Qc2 {[%emt 0:00:13]} Bd6 {[%emt 0:00:10]} 7. b3 {[%emt 0:00:30]} O-O {[%emt 0:00:15]} 8. Be2 {[%emt 0:00:24]} b6 {[%emt 0:00:19]} 9. Bb2 {[%emt 0:00:32]} Bb7 {[%emt 0:00:05]} 10. O-O {[%emt 0:00:09]} Rc8 {[%emt 0:00:18]} 11. Rad1 {[%emt 0:04:02]} c5 {[%emt 0:01:04]} 12. dxc5 {[%emt 0:02:43]} Nxc5 {[%emt 0:01:18]} 13. cxd5 {[%emt 0:01:34]} Nce4 {[%emt 0:01:48]} 14. Qd3 {[%emt 0:06:51]} Nxc3 {[%emt 0:03:07]} 15. Bxc3 {[%emt 0:00:07]} Nxd5 {[%emt 0:01:39]} 1/2-1/2

[Event "1000GM Spring GM-B 2024"]
[Site "New York"]
[Date "2024.03.31"]
[Round "8.1"]
[White "Eidelman, Gabriel"]
[Black "Kaliksteyn, Alexander"]
[Result "1-0"]
[ECO "B93"]
[WhiteElo "2374"]
[BlackElo "2356"]
[Annotator "RC"]
[PlyCount "47"]
[EventDate "2024.03.26"]
[EventType "tourn"]
[EventCountry "USA"]
[SourceTitle "playchess.com"]
[Source "ChessBase"]
[SourceQuality "1"]
[TimeControl "5400+30"]

1. e4 {[%emt 0:02:04]} c5 {[%emt 0:02:29]} 2. Nf3 {[%emt 0:00:12]} d6 {[%emt 0:00:06]} 3. d4 {[%emt 0:00:07]} cxd4 {[%emt 0:00:05]} 4. Nxd4 {[%emt 0:00:06]} Nf6 {[%emt 0:00:08]} 5. Nc3 {[%emt 0:00:06]} a6 {[%emt 0:00:31]} 6. f4 {[%emt 0:00:14]} g6 {[%emt 0:17:40]} 7. Be2 {[%emt 0:23:34]} Bg7 {[%emt 0:01:19]} 8. Be3 {[%emt 0:09:00]} O-O {[%emt 0:04:04]} 9. Bf3 {[%emt 0:00:09]} e5 {[%emt 0:06:26]} 10. Nb3 {[%emt 0:00:07]} Nc6 {[%emt 0:01:00]} 11. O-O {[%emt 0:13:09]} exf4 {[%emt 0:02:06]} 12. Bxf4 {[%emt 0:00:05]} Ne5 {[%emt 0:00:22]} 13. Bg5 {[%emt 0:01:53]} Be6 {[%emt 0:05:28]} 14. Be2 {[%emt 0:04:19]} Rc8 {[%emt 0:06:37]} 15. Kh1 {[%emt 0:01:49]} h6 {[%emt 0:01:06]} 16. Bh4 {[%emt 0:07:13]} Re8 {[%emt 0:18:49]} 17. Nd4 {[%emt 0:03:23]} Nc4 {[%emt 0:01:44]} 18. Nxe6 {[%emt 0:03:56]} Rxe6 {[%emt 0:00:29]} 19. Bxc4 {[%emt 0:02:01]} Rxc4 {[%emt 0:00:03]} 20. Qd3 {[%emt 0:03:40]} Qc8 {[%emt 0:01:28]} 21. Bxf6 {[%emt 0:06:38]} Rxf6 {[%emt 0:00:15]} 22. Nd5 {[%emt 0:01:25]} Rxf1+ {[%emt 0:00:07]} 23. Rxf1 {[%emt 0:00:07]} Qc5 {[%emt 0:00:33]} 24. Qf3 {[%emt 0:02:11]} 1-0

[Event "1000GM Spring GM-B 2024"]
[Site "New York"]
[Date "2024.03.31"]
[Round "8.2"]
[White "Griffith, Kyron"]
[Black "Sinha, Sahil"]
[Result "1/2-1/2"]
[ECO "B56"]
[WhiteElo "2352"]
[BlackElo "2299"]
[Annotator "RC"]
[PlyCount "112"]
[EventDate "2024.03.26"]
[EventType "tourn"]
[EventCountry "USA"]
[SourceTitle "playchess.com"]
[Source "ChessBase"]
[SourceQuality "1"]
[TimeControl "5400+30"]

1. e4 {[%emt 0:01:04]} c5 {[%emt 0:00:06]} 2. Nf3 {[%emt 0:00:18]} d6 {[%emt 0:00:11]} 3. d4 {[%emt 0:00:08]} cxd4 {[%emt 0:00:09]} 4. Nxd4 {[%emt 0:00:04]} Nf6 {[%emt 0:00:06]} 5. Nc3 {[%emt 0:00:03]} Nc6 {[%emt 0:00:11]} 6. f3 {[%emt 0:00:08]} e5 {[%emt 0:00:30]} 7. Nb3 {[%emt 0:00:05]} Be7 {[%emt 0:01:49]} 8. Be3 {[%emt 0:00:06]} O-O {[%emt 0:01:13]} 9. Qd2 {[%emt 0:00:05]} a5 {[%emt 0:00:29]} 10. Bb5 {[%emt 0:00:06]} Be6 {[%emt 0:00:46]} 11. O-O-O {[%emt 0:00:38]} Na7 {[%emt 0:01:33]} 12. Bxa7 {[%emt 0:00:29]} Rxa7 {[%emt 0:00:01]} 13. Qe3 {[%emt 0:00:20]} Ra8 {[%emt 0:04:11]} 14. Kb1 {[%emt 0:00:06]} Qc7 {[%emt 0:03:11]} 15. Rd3 {[%emt 0:02:33]} Rfd8 {[%emt 0:01:21]} 16. Rhd1 {[%emt 0:01:40]} Rac8 {[%emt 0:00:41]} 17. a4 {[%emt 0:01:48]} h5 {[%emt 0:01:55]} 18. g3 {[%emt 0:06:19]} g6 {[%emt 0:02:44]} 19. R1d2 {[%emt 0:07:39]} Bf8 {[%emt 0:05:31]} 20. Nd5 {[%emt 0:02:46]} Bxd5 {[%emt 0:04:29]} 21. exd5 {[%emt 0:00:26]} Nd7 {[%emt 0:01:11]} 22. Rc3 {[%emt 0:13:05]} Nc5 {[%emt 0:00:29]} 23. Nxc5 {[%emt 0:00:05]} dxc5 {[%emt 0:00:04]} 24. g4 {[%emt 0:01:10]} h4 {[%emt 1:09:39]} 25. Rc4 {[%emt 0:03:36]} Bd6 {[%emt 0:00:00]} 26. Qh6 {[%emt 0:07:26]} Bf8 {[%emt 0:00:00]} 27. Qxh4 {[%emt 0:02:14]} Rd6 {[%emt 0:00:00]} 28. Qg5 {[%emt 0:05:25]} Bg7 {[%emt 0:00:00]} 29. Qe3 {[%emt 0:02:36]} b6 {[%emt 0:00:00]} 30. Re4 {[%emt 0:06:50]} Qd8 {[%emt 0:00:00]} 31. c4 {[%emt 0:06:48]} f5 {[%emt 0:00:00]} 32. gxf5 {[%emt 0:00:08]} gxf5 {[%emt 0:00:00]} 33. Rxe5 {[%emt 0:00:02]} Bxe5 {[%emt 0:00:00]} 34. Qxe5 {[%emt 0:00:03]} Qf6 {[%emt 0:00:00]} 35. f4 {[%emt 0:00:48]} Kf7 {[%emt 0:00:00]} 36. Rd3 {[%emt 0:02:50]} Rh8 {[%emt 0:00:00]} 37. Qe2 {[%emt 0:05:41]} Qh4 {[%emt 0:00:00]} 38. Bd7 {[%emt 0:01:50]} Qe7 {[%emt 0:00:00]} 39. Be6+ {[%emt 0:00:33]} Rxe6 {[%emt 0:00:00]} 40. dxe6+ {[%emt 0:00:02]} Qxe6 {[%emt 0:00:00]} 41. Re3 {[%emt 0:04:38]} Qd7 {[%emt 0:00:08]} 42. Qc2 {[%emt 0:00:48]} Rh4 {[%emt 0:01:11]} 43. Rb3 {[%emt 0:04:31]} Qe6 {[%emt 0:01:40]} 44. Qd2 {[%emt 0:02:16]} Qe4+ {[%emt 0:00:09]} 45. Ka2 {[%emt 0:00:19]} Qxc4 {[%emt 0:02:07]} 46. Qd7+ {[%emt 0:00:01]} Kg6 {[%emt 0:00:17]} 47. Ka3 {[%emt 0:00:53]} Rxf4 {[%emt 0:00:51]} 48. Rxb6+ {[%emt 0:05:55]} Kh5 {[%emt 0:00:06]} 49. Qh7+ {[%emt 0:00:02]} Kg4 {[%emt 0:00:04]} 50. Qg6+ {[%emt 0:00:37]} Kf3 {[%emt 0:01:05]} 51. Rb3+ {[%emt 0:00:08]} Kf2 {[%emt 0:01:41]} 52. Qg3+ {[%emt 0:00:18]} Kf1 {[%emt 0:00:01]} 53. Qh3+ {[%emt 0:01:08]} Kf2 {[%emt 0:00:05]} 54. Qe3+ {[%emt 0:00:40]} Kf1 {[%emt 0:00:02]} 55. Qh3+ {[%emt 0:00:52]} Kf2 {[%emt 0:00:01]} 56. Qe3+ {[%emt 0:01:38]} Kf1 {[%emt 0:00:02]} 1/2-1/2

[Event "1000GM Spring GM-B 2024"]
[Site "New York"]
[Date "2024.03.31"]
[Round "8.3"]
[White "Nagy, Gabor"]
[Black "Luo, Terry"]
[Result "1-0"]
[ECO "E72"]
[WhiteElo "2436"]
[BlackElo "2333"]
[Annotator "TA"]
[PlyCount "47"]
[EventDate "2024.03.26"]
[EventType "tourn"]
[EventCountry "USA"]
[SourceTitle "playchess.com"]
[Source "ChessBase"]
[SourceQuality "1"]
[TimeControl "5400+30"]

{[%evp 17,47,47,50,27,83,83,81,81,102,89,86,85,93,75,160,154,207,216,227,227,221,214,219,209,385,409,476,473,492,484,480,485]} 1. d4 {[%emt 0:00:25]} Nf6 {[%emt 0:00:03]} 2. c4 {[%emt 0:00:18]} g6 {[%emt 0:00:02]} 3. g3 {[%emt 0:00:30]} Bg7 {[%emt 0:00:04]} 4. Bg2 {[%emt 0:00:17]} O-O {[%emt 0:00:08]} 5. Nc3 {[%emt 0:00:11]} d6 {[%emt 0:00:04]} 6. h3 {[%emt 0:00:49]} c6 {[%emt 0:02:04]} 7. e4 {[%emt 0:00:47]} e5 {[%emt 0:02:01]} 8. Nge2 {[%emt 0:00:09]} Nbd7 {[%emt 0:02:15]} 9. O-O {[%emt 0:01:43]} a6 {[%emt 0:01:18]} 10. Be3 {[%emt 0:01:18][%cal Bc1e3,Be3c5,Bc5f2][%mdl 32]} b5 {[%emt 0:00:31]} (10... Re8 $11 {remains equal.}) 11. c5 $1 $16 {[%emt 0:15:03]} dxc5 {[%emt 0:04:37] [#]} 12. dxe5 {[%emt 0:01:09] White is better.} ({Much weaker is} 12. dxc5 Qe7 $11) 12... Nxe5 {[%emt 0:00:08]} 13. Bxc5 {[%emt 0:00:20]} Re8 {[%emt 0:00:04]} 14. Qxd8 {[%emt 0:04:48]} Rxd8 {[%emt 0:00:02]} 15. f4 {[%emt 0:00:29]} Nfd7 {[%emt 0:04:28]} (15... Nd3 $142 16. Bb6 Re8) 16. Rad1 {[%emt 0:01:43] White is more active.} Re8 {[%emt 0:10:12] [#]} (16... Bb7 $16) 17. Bf2 $1 $18 {[%emt 0:01:30]} Nc4 {[%emt 0:00:36]} 18. b3 {[%emt 0:02:56]} Ncb6 {[%emt 0:00:46]} 19. e5 {[%emt 0:02:42]} Bb7 {[%emt 0:00:25]} 20. Ne4 {[%emt 0:00:27] Nd6 is the strong threat.} Nd5 $2 {[%emt 0:02:48]} (20... c5 {keeps fighting.} 21. Rd2 (21. Nxc5 Nxc5 22. Bxc5 Rab8 $18) 21... Ra7 22. Nxc5 (22. Bxc5 Nxc5 23. Nxc5 Bxg2 $16) 22... Bxg2 23. Kxg2 Nxc5) 21. Nd6 {[%emt 0:00:25][%csl LRb7,LRe8]} Reb8 {[%emt 0:00:04]} 22. Nd4 {[%emt 0:02:25] White is clearly winning.} N7b6 {[%emt 0:01:24]} 23. Nxb7 {[%emt 0:00:27]} Rxb7 {[%emt 0:00:01]} 24. Nxc6 {[%emt 0:00:11] White took control after the opening.   Weighted Error Value: White=0.03 (flawless) /Black=0.37.  Mistake:       	---       	Black=4      OK:         	White=8     	Black=3      Best:        	White=2     	---        Strong:       	White=2     	---} 1-0

[Event "1000GM Spring GM-B 2024"]
[Site "New York"]
[Date "2024.03.31"]
[Round "8.4"]
[White "Girish, A. Koushik"]
[Black "Paragua, Mark"]
[Result "1/2-1/2"]
[ECO "D31"]
[WhiteElo "2499"]
[BlackElo "2451"]
[Annotator "RC"]
[PlyCount "23"]
[EventDate "2024.03.26"]
[EventType "tourn"]
[EventCountry "USA"]
[SourceTitle "playchess.com"]
[Source "ChessBase"]
[SourceQuality "1"]
[TimeControl "5400+30"]

1. d4 {[%emt 0:15:27]} d5 {[%emt 0:00:07]} 2. c4 {[%emt 0:00:07]} e6 {[%emt 0:00:06]} 3. Nc3 {[%emt 0:00:07]} a6 {[%emt 0:00:28]} 4. cxd5 {[%emt 0:00:14]} exd5 {[%emt 0:00:04]} 5. Bf4 {[%emt 0:00:24]} Nf6 {[%emt 0:00:21]} 6. e3 {[%emt 0:00:04]} Bd6 {[%emt 0:00:11]} 7. Bg3 {[%emt 0:00:09]} O-O {[%emt 0:00:13]} 8. Bd3 {[%emt 0:00:05]} Be6 {[%emt 0:00:41]} 9. Nge2 {[%emt 0:00:12]} c6 {[%emt 0:00:28]} 10. O-O {[%emt 0:00:16]} Be5 {[%emt 1:32:51]} 11. Bf4 Bxf4 {[%emt 0:00:00]} 12. Ng3 {[%emt 0:00:35]} 1/2-1/2

[Event "1000GM Spring GM-B 2024"]
[Site "New York"]
[Date "2024.03.31"]
[Round "8.5"]
[White "Mandizha, Farai"]
[Black "Furfine, Jacob"]
[Result "1-0"]
[ECO "B81"]
[WhiteElo "2380"]
[BlackElo "2343"]
[Annotator "RC"]
[PlyCount "87"]
[EventDate "2024.03.26"]
[EventType "tourn"]
[EventCountry "USA"]
[SourceTitle "playchess.com"]
[Source "ChessBase"]
[SourceQuality "1"]
[TimeControl "5400+30"]

1. e4 {[%emt 0:17:11]} c5 {[%emt 0:00:23]} 2. Nf3 {[%emt 0:00:04]} e6 {[%emt 0:03:30]} 3. d4 {[%emt 0:00:07]} cxd4 {[%emt 0:00:05]} 4. Nxd4 {[%emt 0:00:09]} Nf6 {[%emt 0:00:18]} 5. Nc3 {[%emt 0:00:02]} d6 {[%emt 0:00:06]} 6. g4 {[%emt 0:08:33]} h6 {[%emt 0:00:07]} 7. Be3 {[%emt 0:00:38]} Nc6 {[%emt 0:00:57]} 8. Rg1 {[%emt 0:00:42]} a6 {[%emt 0:07:59]} 9. h4 {[%emt 0:04:51]} d5 {[%emt 0:06:54]} 10. g5 {[%emt 0:00:06]} hxg5 {[%emt 0:02:36]} 11. hxg5 {[%emt 0:00:02]} Nxe4 {[%emt 0:00:16]} 12. Nxe4 {[%emt 0:00:06]} dxe4 {[%emt 0:00:50]} 13. Nxc6 {[%emt 0:00:06]} Qxd1+ {[%emt 0:06:54]} 14. Rxd1 {[%emt 0:00:02]} bxc6 {[%emt 0:00:05]} 15. Bg2 {[%emt 0:00:22]} Rh4 {[%emt 0:09:43]} 16. Rh1 {[%emt 0:01:46]} Rxh1+ {[%emt 0:00:50]} 17. Bxh1 {[%emt 0:00:02]} Bb7 {[%emt 0:02:17]} 18. Bxe4 {[%emt 0:01:19]} Rd8 {[%emt 0:00:06]} 19. Rb1 {[%emt 0:00:34]} Rd7 {[%emt 0:04:43]} 20. Ke2 {[%emt 0:00:35]} c5 {[%emt 0:01:13]} 21. Bxb7 {[%emt 0:00:19]} Rxb7 {[%emt 0:00:01]} 22. b3 {[%emt 0:02:03]} f5 {[%emt 0:10:41]} 23. gxf6 {[%emt 0:03:18]} gxf6 {[%emt 0:00:02]} 24. Rh1 {[%emt 0:00:02]} Rf7 {[%emt 0:08:27]} 25. Rh4 {[%emt 0:00:38]} Rc7 {[%emt 0:06:11]} 26. Rh8 {[%emt 0:01:54]} Ke7 {[%emt 0:00:46]} 27. Kd3 {[%emt 0:00:36]} c4+ {[%emt 0:02:14]} 28. bxc4 {[%emt 0:00:03]} Rc8 {[%emt 0:00:57]} 29. Rh7+ {[%emt 0:03:36]} Kd6 {[%emt 0:00:25]} 30. Ra7 {[%emt 0:01:49]} Rc6 {[%emt 0:00:23]} 31. f4 {[%emt 0:00:27]} Rc7 {[%emt 0:02:23]} 32. Rxa6+ {[%emt 0:00:39]} Kd7 {[%emt 0:00:01]} 33. f5 {[%emt 0:00:36]} exf5 {[%emt 0:01:58]} 34. Rxf6 {[%emt 0:00:03]} Be7 {[%emt 0:00:39]} 35. Rxf5 {[%emt 0:00:06]} Kc6 {[%emt 0:01:02]} 36. a4 {[%emt 0:00:57]} Rd7+ {[%emt 0:00:49]} 37. Bd4 {[%emt 0:00:03]} Bd8 {[%emt 0:00:33]} 38. c3 {[%emt 0:00:47]} Kb7 {[%emt 0:00:19]} 39. Rb5+ {[%emt 0:00:22]} Kc6 {[%emt 0:00:10]} 40. a5 {[%emt 0:00:26]} Rc7 {[%emt 0:01:32]} 41. Rb8 {[%emt 0:01:34]} Be7 {[%emt 0:00:15]} 42. Rb6+ {[%emt 0:01:32]} Kd7 {[%emt 0:00:03]} 43. a6 {[%emt 0:00:15]} Kc8 {[%emt 0:01:07]} 44. Be5 {[%emt 0:00:29]} 1-0